[Event "24th Hoogeschool Zeeland 2022"]
[Site "Vlissingen"]
[Date "2022.08.12"]
[Round "8.2"]
[White "Beerdsen, Thomas"]
[Black "Harsha Bharathakoti"]
[Result "0-1"]
[ECO "B46"]
[WhiteElo "2500"]
[BlackElo "2547"]
[Annotator "TA"]
[PlyCount "106"]
[EventDate "2022.08.05"]
[EventType "swiss"]
[EventCountry "NED"]
[SourceTitle "playchess.com"]
[Source "ChessBase"]
[SourceQuality "1"]
[TimeControl "40/5400+30:1800+30"]

{[%evp 17,106,5,10,0,0,0,18,-1,0,-11,0,-6,0,0,-12,-18,0,6,127,126,246,270,247,210,246,204,415,423,395,414,408,422,377,376,365,290,294,-28,-29,-27,-28,-28,-28,-16,-33,-23,-18,-27,-31,-30,20,37,21,0,42,28,29,0,0,0,0,-8,0,-15,-12,-409,-409,-505,-462,-302,-199,-4742,-4801,-12526,-6299,-29953,-29953,-4793,-4793,-29983,-29984,-29984,-29985,-29985,-29986,-29983,-29984,-29976,-29960,-29958,-12849]} 1. e4 {[%emt 0:00:03]} c5 {[%emt 0:02:10]} 2. Nf3 {[%emt 0:00:25]} e6 {[%emt 0:00:33]} 3. d4 {[%emt 0:00:08]} cxd4 {[%emt 0:00:07]} 4. Nxd4 {[%emt 0:00:05]} Nc6 {[%emt 0:00:28]} 5. Nc3 {[%emt 0:00:08]} Qc7 {[%emt 0:00:04]} 6. f4 {[%emt 0:00:41]} a6 {[%emt 0:00:24]} 7. Nxc6 {[%emt 0:00:44]} bxc6 {[%emt 0:09:03]} 8. Bd3 {[%emt 0:02:43]} d5 {[%emt 0:00:52]} 9. O-O {[%emt 0:09:15]} Nf6 {[%emt 0:00:39]} 10. Qf3 {[%emt 0:05:05] B46: Sicilian: Taimanov: 5 Nc3 a6.} Be7 {[%emt 0:12:09]} 11. Kh1 {[%emt 0:02:17]} a5 {[%emt 1:09:31] [#]} 12. e5 $146 {[%emt 0:14:40] The position is equal.} ({Predecessor:} 12. Bd2 Ba6 13. f5 d4 14. fxe6 dxc3 15. exf7+ Kf8 16. Bxc3 h5 17. Bxa6 Rxa6 18. Rad1 {0-1 (51) Pichot,A (2577)-Klein,D (2508) Chess.com INT 2017}) 12... Nd7 {[%emt 0:00:00]} 13. f5 {[%emt 0:01:04]} exf5 {[%emt 0:00:00]} (13... Qxe5 14. fxe6 fxe6 15. Bf4 $14) 14. Bxf5 {[%emt 0:07:22]} O-O {[%emt 0:00:00]} 15. Qh3 $36 {[%emt 0:11:43][%csl Gf5][%cal Rh3h7][%mdl 2048] White has good play.} g6 {[%emt 0:00:00]} 16. e6 {[%emt 0:01:25]} Ne5 {[%emt 0:00:00]} (16... gxf5 17. exd7 (17. Bf4 Qd8 $16) 17... Bxd7 18. Bf4 $16) 17. Bh6 {[%emt 0:02:57]} Re8 {[%emt 0:00:00]} (17... Rd8 $11) 18. Bf4 $1 $16 {[%emt 0:10:19]} f6 {[%emt 0:00:00]} (18... fxe6 $16 {was called for.} 19. Bxg6 (19. Bxe6+ Kh8 $11) 19... hxg6) 19. Bxe5 $18 {[%emt 0:05:10]} Qxe5 {[%emt 0:00:00]} 20. Rae1 {[%emt 0:00:29][%cal Ba1e1,Be1e3,Be3g3][%mdl 32]} Qd4 {[%emt 0:00:00]} 21. Ne2 {[%emt 0:04:27]} Qd2 {[%emt 0:00:00] [#]} (21... Qxb2 22. Nf4 Bb4 23. Bxg6 $1 {[%mdl 512]} hxg6 24. Qh6 $18) (21... Qe5) 22. Nf4 $1 {[%emt 0:04:01][%cal Of5g6] Threatens to win with Bxg6!} gxf5 {[%emt 0:00:00]} 23. Re3 {[%emt 0:05:37]} Bf8 {[%emt 0:00:00] aiming for ...Ra7.} (23... Ba6 24. Rg3+ Kh8 25. Ng6+ Kg8 26. Nf8+ Kxf8 27. Qxh7 $1) 24. Rg3+ {[%emt 0:04:52]} Bg7 {[%emt 0:00:00]} 25. Qxf5 {[%emt 0:02:29][%cal Og3g7] White wants to mate with Rxg7+!} ({And not} 25. Qh6 Ra7 26. Qxf6 Rf8 $17) (25. Nh5 Kh8 $18) 25... Ra7 {[%emt 0:00:00]} 26. Qxf6 {[%emt 0:01:38] Threatening mate with Nh5.} Qb4 {[%emt 0:06:41]} (26... Qxc2 $2 27. Nh5 Qg6 28. Rxg6 $18) (26... Kh8 {[#] leads to mate.} 27. Ng6+ $1 {[%mdl 512]} hxg6 28. Rh3+) 27. Qf7+ {[%emt 0:03:11]} Rxf7 $11 {[%emt 0:00:10]} 28. exf7+ {[%emt 0:00:04]} Kxf7 {[%emt 0:00:22]} 29. Nxd5+ $1 {[%emt 0:00:39]} Kg8 {[%emt 0:00:11]} 30. Nxb4 {[%emt 0:00:07]} axb4 {[%emt 0:00:02]} 31. h3 {[%emt 0:01:09]} Kh8 {[%emt 0:00:51][%mdl 1024] Black has compensation.} 32. c3 {[%emt 0:00:25]} bxc3 {[%emt 0:00:57]} 33. bxc3 {[%emt 0:00:04]} Re7 {[%emt 0:01:14]} ({Black should try} 33... Ba6 34. Rff3 Rd8) 34. Rd1 {[%emt 0:00:43] Rd8+ would kill now.} Re8 {[%emt 0:00:30] Inhibits Rd8.} 35. Rgd3 {[%emt 0:01:03] Rd8 is the strong threat.} (35. Re3 $5 Rg8 36. a4 $14) 35... Kg8 {[%emt 0:00:24]} 36. Rd8 {[%emt 0:00:23]} Kf7 {[%emt 0:00:04]} 37. Rxe8 {[%emt 0:00:28]} Kxe8 {[%emt 0:00:01]} 38. a4 {[%emt 0:00:50]} Ke7 {[%emt 0:01:07]} 39. Rd3 {[%emt 0:00:29]} Ba6 {[%emt 0:00:45]} 40. Rf3 {[%emt 0:00:22]} Kd6 {[%emt 0:00:39]} 41. Rf7 $2 {[%emt 0:09:06][%mdl 8192]} (41. Kg1 $11 {and White has nothing to worry.}) 41... Bxc3 $19 {[%emt 0:00:06]} 42. Rxh7 {[%emt 0:00:05]} Bd3 {[%emt 0:03:19]} 43. Rh6+ {[%emt 0:04:46]} Kc7 {[%emt 0:07:39] Strongly threatening ...c5.} 44. g4 $2 {[%emt 0:09:57]} (44. Rh5) 44... c5 {[%emt 0:02:14]} 45. g5 {[%emt 0:04:54]} c4 {[%emt 0:07:52] ( -> ...Be4+)} 46. g6 {[%emt 0:00:45]} Be4+ {[%emt 0:01:27]} 47. Kg1 {[%emt 0:00:31]} Bd4+ {[%emt 0:00:05] This bishop pair is nice.} 48. Kf1 {[%emt 0:01:09]} c3 {[%emt 0:00:04] Black mates.} 49. Rh4 {[%emt 0:01:05]} c2 {[%emt 0:00:21]} 50. Rxe4 {[%emt 0:00:06]} c1=Q+ {[%emt 0:00:04]} 51. Ke2 {[%emt 0:00:06]} Qc2+ {[%emt 0:01:31]} 52. Kf3 {[%emt 0:00:04]} Qf2+ {[%emt 0:00:13]} 53. Kg4 {[%emt 0:00:05]} Qf6 {[%emt 0:00:05] What a bad dream for White.  Weighted Error Value: White=0.76/Black=0.19 (very precise)} (53... Qg2+ $142 54. Kf5 Qf3+ 55. Rf4 Qd5+ 56. Kg4 Qg2+ 57. Kf5 Be3 58. Rg4 Qxh3 59. Ke4 Bh6 60. Rf4 Qg2+ 61. Ke5 Qg3 62. Kd4 Qxf4+ 63. Kd3 Qe3+ 64. Kc4 Bg7 65. a5 Kc6 66. Kb4 Qc3+ 67. Ka4 Qc2+ 68. Kb4 Bf8#) 0-1

[Event "24th Hoogeschool Zeeland 2022"]
[Site "Vlissingen"]
[Date "2022.08.12"]
[Round "8.3"]
[White "Vrolijk, Liam"]
[Black "Van den Doel, Erik"]
[Result "1-0"]
[ECO "D52"]
[WhiteElo "2464"]
[BlackElo "2589"]
[Annotator "TA"]
[PlyCount "63"]
[EventDate "2022.08.05"]
[EventType "swiss"]
[EventCountry "NED"]
[SourceTitle "playchess.com"]
[Source "ChessBase"]
[SourceQuality "1"]
[TimeControl "40/5400+30:1800+30"]

{[%evp 18,63,28,33,25,17,16,14,62,58,61,41,35,28,83,40,87,76,71,37,37,33,20,8,10,0,0,0,0,0,185,154,500,488,442,176,166,169,176,175,377,362,1459,1479,1227,889,5306,5197]} 1. c4 {[%emt 0:03:00]} c6 {[%emt 0:00:11]} 2. d4 {[%emt 0:00:07]} d5 {[%emt 0:00:04]} 3. Nf3 {[%emt 0:00:04]} Nf6 {[%emt 0:00:04]} 4. Nc3 {[%emt 0:00:05]} e6 {[%emt 0:00:05]} 5. Bg5 {[%emt 0:00:06]} Nbd7 {[%emt 0:00:04]} 6. e3 {[%emt 0:00:06]} Qa5 {[%emt 0:00:08]} 7. Nd2 {[%emt 0:01:08]} dxc4 {[%emt 0:00:10]} 8. Bxf6 {[%emt 0:00:29]} Nxf6 {[%emt 0:00:06]} 9. Nxc4 {[%emt 0:00:08]} Qc7 {[%emt 0:00:05]} 10. Rc1 {[%emt 0:00:42]} Bd6 {[%emt 0:01:45] D52: Queen's Gambit Declined: Cambridge Springs Variation.} 11. f4 {[%emt 0:01:49]} Be7 {[%emt 0:17:25] [#]} 12. Bd3 $146 {[%emt 0:01:44]} ({Predecessor:} 12. Be2 O-O 13. O-O Rd8 14. Qc2 Bd7 15. Ne4 Nxe4 16. Qxe4 c5 17. f5 Qc6 18. Qxc6 Bxc6 19. fxe6 fxe6 {0-1 (41) Gukesh,D (2614)-Karthikeyan,M (2622) chess24.com INT 2022}) 12... Bd7 {[%emt 0:01:16]} (12... O-O $11) 13. O-O $14 {[%emt 0:05:33]} (13. Ne5 {keeps more tension.} Nd5 14. Kf2 O-O 15. h4) 13... c5 {[%emt 0:01:17]} 14. dxc5 {[%emt 0:06:24]} Bxc5 {[%emt 0:02:44]} 15. Kh1 {[%emt 0:04:30]} Qd8 {[%emt 0:40:33]} (15... O-O $11) 16. e4 {[%emt 0:22:29][%cal Be3e4,Be4e5][%mdl 32] And now e5 would win.} h5 {[%emt 0:00:10]} (16... O-O $14 {deserves consideration.}) 17. e5 $16 {[%emt 0:05:15]} Ng4 {[%emt 0:00:13]} 18. Ne4 {[%emt 0:00:28] Pair of Knights!} (18. Nd6+ $2 Bxd6 19. Qe2 Bc5 $19) (18. Qe1 $5 {[%cal Rc3e4]}) 18... Qh4 $1 {[%emt 0:05:38][%csl Gg4][%cal Rh4h2]} 19. h3 {[%emt 0:01:45] Active counter play!} Bc6 $1 {[%emt 0:00:05] Threatens to win with ...Bxe4.} 20. Ncd6+ {[%emt 0:07:53]} Bxd6 {[%emt 0:00:15]} 21. Nxd6+ {[%emt 0:00:06]} Kf8 {[%emt 0:00:49] ( -> ...Qxh3+)} 22. Rxc6 $1 {[%emt 0:01:44]} bxc6 {[%emt 0:15:17]} 23. Qf3 {[%emt 0:00:47] Against Qg3} Rb8 $2 {[%emt 0:01:48]} (23... g6 $11) 24. f5 $1 $18 {[%emt 0:05:20]} (24. Kg1 Nh6 $11) 24... Qe7 {[%emt 0:07:00] Loses the game.} (24... Nxe5 $16 {is more resistant.} 25. Qe3 Qe7 $1 26. Nxf7 (26. Qxe5 f6 $11) 26... Nxf7 27. fxe6 Re8) 25. Qg3 {[%emt 0:07:07] aiming for fxe6.} exf5 {[%emt 0:00:38]} 26. hxg4 $2 {[%emt 0:02:02]} (26. Nxf7 Kxf7 27. e6+ Qxe6 28. Bxf5) 26... hxg4+ {[%emt 0:00:06]} 27. Kg1 {[%emt 0:00:06][%cal Bh1g1,Bg1f2,Bf2e2][%mdl 32]} g6 {[%emt 0:00:31] [#]} 28. e6 $1 $40 {[%emt 0:04:01][%mdl 1152] White has strong compensation. White is out for blood.} Qh4 $2 {[%emt 0:06:03] [#]} (28... fxe6 {is a better defense.} 29. Qe5 (29. Nxf5 exf5 30. Qxb8+ Kg7 $16) 29... Rg8) 29. Qe5 $1 {[%emt 0:03:39] Threatening mate with e7+. Dancing on a razor blade.} Qh1+ $2 {[%emt 0:00:00]} (29... g3 30. e7+ Kg8 31. e8=Q+ $18) (29... fxe6 30. Nxf5 gxf5) 30. Kf2 {[%emt 0:00:06] White wants to mate with e7+. White is clearly winning.} Qh4+ {[%emt 0:00:00]} 31. Ke2 {[%emt 0:01:58]} ({Weaker is} 31. Ke3 Rh7 $16) 31... fxe6 {[%emt 0:00:59] [#]} 32. Rh1 $3 {[%emt 0:00:48][%mdl 576] Skewer.  Weighted Error Value: White=0.18 (very precise) /Black=0.69} 1-0

[Event "24th Hoogeschool Zeeland 2022"]
[Site "Vlissingen"]
[Date "2022.08.12"]
[Round "8.4"]
[White "Baklan, Vladimir"]
[Black "Dhulipalla Bala Chandra Prasad"]
[Result "1/2-1/2"]
[ECO "C84"]
[WhiteElo "2589"]
[BlackElo "2423"]
[Annotator "TA"]
[PlyCount "71"]
[EventDate "2022.08.05"]
[EventType "swiss"]
[EventCountry "NED"]
[SourceTitle "playchess.com"]
[Source "ChessBase"]
[SourceQuality "1"]
[TimeControl "40/5400+30:1800+30"]

{[%evp 15,71,10,14,5,12,13,12,7,23,9,16,8,19,19,20,18,19,16,20,13,29,14,42,0,27,25,32,0,0,4,19,-23,0,-34,-33,-83,-48,-62,-21,-42,0,0,23,25,34,29,33,14,27,14,14,7,11,0,0,0,0,0]} 1. e4 {[%emt 0:00:03]} e5 {[%emt 0:01:33]} 2. Nf3 {[%emt 0:00:03]} Nc6 {[%emt 0:00:04]} 3. Bb5 {[%emt 0:00:03]} a6 {[%emt 0:00:04]} 4. Ba4 {[%emt 0:00:03]} Nf6 {[%emt 0:00:04]} 5. O-O {[%emt 0:00:14]} Be7 {[%emt 0:00:10]} 6. d3 {[%emt 0:00:36]} b5 {[%emt 0:00:46]} 7. Bb3 {[%emt 0:00:04]} d6 {[%emt 0:00:03]} 8. a4 {[%emt 0:00:03]} Bd7 {[%emt 0:02:38]} 9. Bd2 {[%emt 0:06:30] C84: Closed Ruy Lopez: Unusual White 6th moves.} b4 {[%emt 0:01:46]} 10. a5 {[%emt 0:05:14]} O-O {[%emt 0:16:43]} 11. h3 {[%emt 0:01:56]} Rb8 {[%emt 0:07:35]} 12. c3 {[%emt 0:00:14]} h6 {[%emt 0:00:22] 12...bxc3 is the recent fashion.} 13. Re1 {[%emt 0:05:46]} Re8 {[%emt 0:01:48]} 14. Bc4 {[%emt 0:09:07]} Qc8 {[%emt 0:11:04]} 15. d4 {[%emt 0:01:00]} bxc3 {[%emt 0:04:12] [#]} 16. Bxc3 $146 {[%emt 0:11:05]} ({Predecessor:} 16. bxc3 Bf8 17. Qc2 Nh5 18. Qd3 Ra8 19. Be3 Nf6 20. Nbd2 g6 21. Nh4 Kg7 22. Rf1 {1-0 (41) Lagno,K (2546)-Abdumalik,Z (2478) Chess.com INT 2020}) 16... exd4 {[%emt 0:07:55]} 17. Nxd4 {[%emt 0:00:15]} Ne5 {[%emt 0:06:52]} 18. Bf1 {[%emt 0:00:57]} Bf8 {[%emt 0:05:45]} 19. Nf3 {[%emt 0:06:58]} Nxf3+ {[%emt 0:04:00]} 20. Qxf3 {[%emt 0:00:16]} Nh7 {[%emt 0:00:09]} 21. Nd2 {[%emt 0:04:35]} Bb5 {[%emt 0:01:36]} 22. Re3 {[%emt 0:08:02]} Be7 {[%emt 0:03:47][%cal Bf8e7,Be7g5,Bg5f6][%mdl 32]} 23. Rc1 {[%emt 0:02:44]} Bg5 {[%emt 0:04:42]} 24. Bxb5 {[%emt 0:06:07]} Rxb5 {[%emt 0:00:19]} 25. Rd3 {[%emt 0:00:03]} (25. Ree1 $15) 25... Qb7 {[%emt 0:02:14]} 26. Qg3 {[%emt 0:02:41]} Bf6 {[%emt 0:00:59]} 27. f3 {[%emt 0:00:48]} Qa7+ {[%emt 0:03:04]} 28. Qf2 {[%emt 0:03:30]} Qxf2+ {[%emt 0:05:04]} 29. Kxf2 {[%emt 0:00:09]} Bxc3 {[%emt 0:03:44]} 30. Rcxc3 {[%emt 0:00:18]} Re7 {[%emt 0:01:48]} 31. Nb3 {[%emt 0:04:15]} Nf6 {[%emt 0:01:29]} 32. Rc6 {[%emt 0:05:12]} Re8 {[%emt 0:00:15] The position is equal.} ({Don't take} 32... d5 33. exd5 (33. Rxa6 dxe4 34. fxe4 Nxe4+ 35. Kg1 c5 $11) 33... Nxd5 34. Rc5 (34. Rxa6 Nf4 $11) 34... Rxc5 35. Nxc5 $16) 33. Rxc7 {[%emt 0:01:14]} d5 {[%emt 0:00:41]} 34. exd5 {[%emt 0:07:20]} Nxd5 {[%emt 0:00:01]} 35. Rc4 {[%emt 0:00:04]} Reb8 {[%emt 0:01:03]} 36. Nd2 {[%emt 0:03:12] Weighted Error Value: White=0.12 (very precise) /Black=0.10 (very precise)} 1/2-1/2

[Event "24th Hoogeschool Zeeland 2022"]
[Site "Vlissingen"]
[Date "2022.08.12"]
[Round "8.5"]
[White "Sorbe, Stephane"]
[Black "Ikonnikov, Vyacheslav"]
[Result "0-1"]
[ECO "B25"]
[WhiteElo "2352"]
[BlackElo "2493"]
[Annotator "TA"]
[PlyCount "108"]
[EventDate "2022.08.05"]
[EventType "swiss"]
[EventCountry "NED"]
[SourceTitle "playchess.com"]
[Source "ChessBase"]
[SourceQuality "1"]
[TimeControl "40/5400+30:1800+30"]

{[%evp 17,108,-19,-11,-11,0,-19,10,-10,-5,0,-8,-4,48,35,32,39,50,0,0,0,0,0,2,0,0,0,0,0,0,0,0,0,6,0,0,0,0,0,0,0,0,-4,0,-3,0,-2,0,0,0,0,0,0,35,0,45,38,77,69,143,143,237,239,175,93,98,20,80,74,312,16,19,27,31,48,40,-518,-483,-425,-52,-29985,-29986,-29986,-29987,-29987,-29981,-29988,-29989,-29989,-29990,-29990,-29991,-29991,-29992]} 1. e4 {[%emt 0:01:38]} c5 {[%emt 0:00:14]} 2. Nc3 {[%emt 0:00:06]} Nc6 {[%emt 0:00:12]} 3. g3 {[%emt 0:00:16]} g6 {[%emt 0:00:43]} 4. Bg2 {[%emt 0:00:06]} Bg7 {[%emt 0:00:18]} 5. d3 {[%emt 0:00:08]} d6 {[%emt 0:00:26]} 6. f4 {[%emt 0:00:08]} Rb8 {[%emt 0:00:38]} 7. Nf3 {[%emt 0:00:12]} b5 {[%emt 0:01:26][%cal Bb7b5,Bb5b4,Bb4b3][%mdl 32]} 8. O-O {[%emt 0:00:33]} b4 {[%emt 0:00:44]} 9. Ne2 {[%emt 0:00:24]} Nf6 {[%emt 0:00:11]} 10. a3 {[%emt 0:08:06] B25: Closed Sicilian: 3 g3, lines without early Be3.} Qb6 {[%emt 0:13:01] [#]} 11. Kh1 $146 {[%emt 0:07:50]} ({Predecessor:} 11. axb4 cxb4+ 12. Kh1 O-O 13. h3 a5 14. g4 Ba6 15. f5 b3 16. c3 Ne5 17. Nf4 Nxf3 18. Rxf3 {0-1 (51) Babikov,I (2266)-Danielyan,L (2143) Sochi 2017}) 11... b3 {[%emt 0:06:41]} 12. c3 {[%emt 0:20:43] The position is equal.} c4 {[%emt 0:18:03]} 13. e5 {[%emt 0:05:46]} cxd3 {[%emt 0:00:23]} 14. Ned4 {[%emt 0:17:44] Threatens to win with Nxc6.} (14. Qxd3 Ba6 15. Qe3 (15. c4 dxe5 16. Nc3 O-O $17) 15... Qxe3 16. Bxe3 Ng4 $15) 14... Ne4 {[%emt 0:22:12]} (14... Nd5 $11) 15. Be3 {[%emt 0:12:50][%cal Od4f5] Hoping for Nf5!} Nc5 {[%emt 0:03:46]} (15... dxe5 $2 16. Nf5 $1 {[%mdl 512]} gxf5 17. Bxb6 Rxb6 18. fxe5 $18) 16. exd6 {[%emt 0:04:16]} exd6 {[%emt 0:03:04]} 17. f5 {[%emt 0:01:25]} (17. Nxc6 $14 Qxc6 18. Bxc5 dxc5 19. Re1+ (19. Qxd3 O-O $11) 19... Be6 20. Qxd3 (20. Ne5 Qc7 $11)) 17... Bb7 $11 {[%emt 0:06:27]} 18. Nxc6 {[%emt 0:06:05]} Bxc6 {[%emt 0:00:42]} 19. Bxc5 {[%emt 0:03:03]} Qxc5 {[%emt 0:00:25]} 20. Re1+ {[%emt 0:00:23]} Be5 {[%emt 0:00:28]} 21. Qxd3 {[%emt 0:00:36]} O-O {[%emt 0:01:13]} 22. Rad1 {[%emt 0:00:14]} Rfe8 {[%emt 0:01:25]} (22... Qf2 23. Qe2 Qxe2 24. Rxe2 $14) 23. fxg6 {[%emt 0:02:30]} hxg6 {[%emt 0:00:11]} 24. Nxe5 {[%emt 0:01:44]} dxe5 {[%emt 0:00:37]} 25. Bxc6 {[%emt 0:00:41]} Qxc6+ {[%emt 0:00:06]} 26. Kg1 {[%emt 0:00:27]} Kg7 {[%emt 0:04:05]} 27. Qe3 {[%emt 0:00:42]} Rb7 {[%emt 0:01:26]} 28. Rd2 {[%emt 0:00:13]} Rd7 {[%emt 0:05:58]} 29. Red1 {[%emt 0:00:07]} Rxd2 {[%emt 0:00:05]} 30. Rxd2 {[%emt 0:00:39][%mdl 4096] Endgame KQR-KQR} Re7 {[%emt 0:00:07]} 31. h4 {[%emt 0:01:16]} f6 {[%emt 0:01:23]} 32. Qd3 {[%emt 0:00:58]} Qb6+ {[%emt 0:01:57]} 33. Kf1 {[%emt 0:00:29]} e4 {[%emt 0:01:28]} 34. Qd6 {[%emt 0:00:52]} Qb7 {[%emt 0:01:36]} 35. Rd5 {[%emt 0:01:52]} e3 {[%emt 0:02:03]} 36. Ke2 {[%emt 0:00:02]} Kf7 {[%emt 0:00:03]} 37. g4 {[%emt 0:00:51]} a5 {[%emt 0:01:02]} ({Black should play} 37... Qc8 $14 38. Rd4 Qb7 39. Qd5+ Qxd5 40. Rxd5 Ke6) 38. g5 $16 {[%emt 0:00:49]} fxg5 {[%emt 0:00:07]} (38... Re6 $16 39. Qd7+ Qxd7 40. Rxd7+ Ke8) 39. hxg5 $18 {[%emt 0:01:18] Intending Qf6+ and mate.} ({Not} 39. h5 gxh5 40. Rf5+ (40. Rxg5 Qe4 $17) (40. Ke1 h4 $11) 40... Ke8 $16) 39... Kg7 {[%emt 0:00:10]} 40. Qf6+ {[%emt 0:01:25]} (40. a4 $18) 40... Kh7 $16 {[%emt 0:00:27]} 41. Qf3 {[%emt 0:06:20]} ({Better is} 41. Qd4 $16 {Qh4+ would kill now.} Qb8 42. Qh4+ Kg8 43. Rxa5) 41... Qa6+ {[%emt 0:29:51] [#]} (41... Qc7 $11 42. Qh1+ Kg8) 42. Ke1 $1 {[%emt 0:00:27] Threatening mate with Rd8.} Qe6 $2 {[%emt 0:00:13]} (42... Qa8 $16) 43. Rd8 $2 {[%emt 0:05:45]} (43. Qh1+ $18 Kg7 44. Rxa5 (44. Rd8 Re8 $16)) 43... Re8 $1 $11 {[%emt 0:01:21]} 44. Qb7+ {[%emt 0:01:15]} Kh8 $1 {[%emt 0:00:33] The board is on fire.} 45. Qh1+ {[%emt 0:07:05]} Kg7 $1 {[%emt 0:00:40]} 46. Rd4 {[%emt 0:01:13][%mdl 8192]} (46. Rxe8 $14 {keeps the upper hand.} Qxe8 47. Qd5) 46... Qf5 $19 {[%emt 0:01:00]} 47. Qf1 {[%emt 0:08:41] [#] Inhibits Qf2+.} Qxg5 $2 {[%emt 0:00:46]} (47... Rh8 $1 $19 {[%cal Rh8h1] ( -> ...Rh1!)} 48. Qxf5 gxf5) 48. Rf4 $2 {[%emt 0:01:57][%mdl 8192]} (48. Rd7+ $15 Kh6 49. Qh3+ Qh5 50. Qg3 Qh1+ 51. Ke2 Qh5+ 52. Ke1) 48... Qg3+ {[%emt 0:00:50] Black mates.} 49. Ke2 {[%emt 0:00:13]} Qh2+ {[%emt 0:00:07]} 50. Kd3 {[%emt 0:00:14]} Qd2+ {[%emt 0:01:47]} 51. Kc4 {[%emt 0:00:03]} e2 {[%emt 0:00:49]} 52. Rf7+ {[%emt 0:00:13]} Kg8 {[%emt 0:00:07]} 53. Qf6 {[%emt 0:00:14]} Rc8+ {[%emt 0:00:20]} 54. Kxb3 {[%emt 0:00:38]} Qd5+ {[%emt 0:03:33] Weighted Error Value: White=0.51/Black=0.32} 0-1

[Event "24th Hoogeschool Zeeland 2022"]
[Site "Vlissingen"]
[Date "2022.08.12"]
[Round "8.6"]
[White "Schoppen, Casper"]
[Black "Santiago, Yago De Moura"]
[Result "1/2-1/2"]
[ECO "A11"]
[WhiteElo "2507"]
[BlackElo "2513"]
[Annotator "TA"]
[PlyCount "46"]
[EventDate "2022.08.05"]
[EventType "swiss"]
[EventCountry "NED"]
[SourceTitle "playchess.com"]
[Source "ChessBase"]
[SourceQuality "1"]
[TimeControl "40/5400+30:1800+30"]

{[%evp 18,46,39,23,30,13,12,19,16,12,14,12,35,32,46,21,68,52,59,54,70,56,77,69,85,76,85,0,84,0,85]} 1. Nf3 {[%emt 1:12:23]} Nf6 {[%emt 0:00:28]} 2. g3 {[%emt 0:00:04]} e6 {[%emt 0:07:14]} 3. Bg2 {[%emt 0:00:05]} d5 {[%emt 0:00:34]} 4. O-O {[%emt 0:00:07]} g6 {[%emt 0:00:39]} 5. d4 {[%emt 0:00:21]} Bg7 {[%emt 0:00:12]} 6. c4 {[%emt 0:00:10]} O-O {[%emt 0:00:11]} 7. Nc3 {[%emt 0:00:11]} c6 {[%emt 0:02:35]} 8. b3 {[%emt 0:00:29]} Nbd7 {[%emt 0:01:23]} 9. Qc2 {[%emt 0:00:16]} Re8 {[%emt 0:08:55]} 10. Bb2 {[%emt 0:00:19]} (10. Rd1 {is more complex.} b6 11. Ne5 Nxe5 12. dxe5 Ng4 13. f4) 10... b6 {[%emt 0:02:55] A11: English Opening: 1...c6.} 11. e4 {[%emt 0:00:29]} Nxe4 {[%emt 0:01:45]} 12. Nxe4 {[%emt 0:00:02]} dxe4 {[%emt 0:00:09]} 13. Qxe4 {[%emt 0:00:04]} Bb7 {[%emt 0:00:11]} 14. Rad1 {[%emt 0:00:17] [#]} Rc8 $146 {[%emt 0:29:22]} ({Predecessor:} 14... Qc7 15. Qb1 Rad8 16. Rfe1 a5 17. Bc1 Nf6 18. Bf4 Qc8 19. b4 axb4 20. Qxb4 b5 {1-0 (32) Zurkowski,A (2065)-Nova,M (1886) Pardubice 2019}) 15. Ne5 {[%emt 0:01:22]} Qe7 {[%emt 0:02:25]} 16. Rd2 {[%emt 0:03:35]} Nf6 {[%emt 0:02:37]} (16... Nxe5 $11 17. dxe5 Rcd8) 17. Qf3 {[%emt 0:01:19]} Red8 {[%emt 0:01:00]} 18. Rfd1 {[%emt 0:00:21]} Rc7 {[%emt 0:07:10]} 19. Qe3 {[%emt 0:00:53]} Rdc8 {[%emt 0:04:05]} 20. h3 {[%emt 0:02:36]} Rb8 {[%emt 0:01:58]} 21. Bc3 {[%emt 0:02:49]} Rbc8 {[%emt 0:01:49]} 22. Bb2 {[%emt 0:00:15] 0x0.0024d7ce421adp-1022s more active pieces.} Rb8 $1 {[%emt 0:00:12]} 23. Bc3 {[%emt 0:00:09]} Rbc8 $1 {[%emt 0:00:06] Weighted Error Value: White=0.22 (precise) /Black=0.10 (very precise)} 1/2-1/2